fUSD/lending_fUSD_20250616
["ID","MTS","AMOUNT","RATE_DAILY","PERIOD"]
[366066478,1750045847127,-488.94179837,0.00016438,2]
[366066479,1750045847137,-490.0,0.00016438,2]
[366066480,1750045847147,-494.25058959,0.00016438,2]
[366066481,1750045847156,-490.0,0.00016438,2]
[366066482,1750045847166,-491.78843423,0.00016438,2]
[366066483,1750045847175,-490.0,0.00016438,2]
[366066485,1750045847185,-490.0,0.00016438,2]
[366066487,1750045847195,-8748.53,0.00016438,2]
[366066489,1750045847204,-490.0,0.00016438,2]
[366066491,1750045847214,-211.37204422,0.00016438,2]
[366066493,1750045847224,-490.0,0.00016438,2]
[366066495,1750045847234,-757.81,0.00016438,2]
[366066497,1750045847244,-653.9,0.00016438,2]
[366066499,1750045847253,-553.63,0.00016438,2]
[366066500,1750045847263,-536.0787695,0.00016438,2]
[366066501,1750045847272,-1429.76,0.00016438,2]
[366066502,1750045847282,-151.0,0.00016438,2]
[366066503,1750045847293,-1016.1,0.00016438,2]
[366066504,1750045847303,-151.0,0.00016438,2]
[366066505,1750045847312,-151.0,0.00016438,2]
[366066506,1750045847696,-1892.25,0.00016438,2]
[366066507,1750045847708,-1455.9,0.00016438,2]
[366066508,1750045847718,-490.0,0.00016438,2]
[366066509,1750045847728,-1336.7,0.00016438,2]
[366066510,1750045847739,-683.52,0.00016438,2]
[366066511,1750045847749,-1922.17,0.00016438,2]
[366066512,1750045847759,-490.0,0.00016438,2]
[366066513,1750045847769,-492.86861285,0.00016438,2]
[366066514,1750045847778,-490.0,0.00016438,2]
[366066515,1750045847788,-492.90063709,0.00016438,2]
[366066516,1750045847798,-1927.17,0.00016438,2]
[366066517,1750045847807,-2460.49,0.00016438,2]
[366066518,1750045847816,-490.0,0.00016438,2]
[366066519,1750045847827,-490.0,0.00016438,2]
[366066520,1750045847837,-496.45697289,0.00016438,2]
[366066521,1750045847847,-490.0,0.00016438,2]
[366066522,1750045847857,-8811.39,0.00016438,2]
[366066523,1750045847867,-490.54487417,0.00016438,2]
[366066524,1750045847877,-1489.38,0.00016438,2]
[366066525,1750045847887,-573.87,0.00016438,2]
[366066526,1750045847897,-494.0402997,0.00016438,2]
[366066527,1750045847907,-490.0,0.00016438,2]
[366066528,1750045847917,-2347.63,0.00016438,2]
[366066529,1750045847927,-496.27368078,0.00016438,2]
[366066530,1750045847939,-1578.49,0.00016438,2]
[366066531,1750045847950,-151.0,0.00016438,2]
[366066532,1750045847960,-490.0,0.00016438,2]
[366066533,1750045847969,-151.0,0.00016438,2]
[366066534,1750045847980,-151.0,0.00016438,2]
[366066535,1750045847990,-491.34637633,0.00016438,2]
[366066536,1750045848000,-490.0,0.00016438,2]
[366066537,1750045848010,-936.1,0.00016438,2]
[366066538,1750045848021,-490.0,0.00016438,2]
[366066539,1750045848031,-3751.35,0.00016438,2]
[366066540,1750045848040,-151.0,0.00016438,2]
[366066541,1750045848052,-151.0,0.00016438,2]
[366066542,1750045848062,-490.0,0.00016438,2]
[366066543,1750045848071,-151.324056,0.00016438,2]
[366066544,1750045848082,-151.0,0.00016438,2]
[366066545,1750045848093,-842.11,0.00016438,2]
[366066546,1750045848103,-493.01834514,0.00016438,2]
[366066547,1750045848113,-490.0,0.00016438,2]
[366066548,1750045848124,-1159.08,0.00016438,2]
[366066549,1750045848134,-1533.12,0.00016438,2]
[366066550,1750045848144,-490.0,0.00016438,2]
[366066551,1750045848155,-490.0,0.00016438,2]
[366066552,1750045848165,-497.1920181,0.00016438,2]
[366066553,1750045848176,-365.04704999,0.00016438,2]
[366066554,1750045848186,-490.0,0.00016438,2]
[366066555,1750045848196,-1022.21,0.00016438,2]
[366066556,1750045848206,-490.0,0.00016438,2]
[366066557,1750045848217,-846.1,0.00016438,2]
[366066558,1750045848227,-18090.43,0.00016438,2]
[366066559,1750045848237,-493.30196648,0.00016438,2]
[366066560,1750045848247,-490.0,0.00016438,2]
[366066561,1750045848257,-749.4,0.00016438,2]
[366066562,1750045848267,-490.0,0.00016438,2]
[366066563,1750045848276,-1387.96,0.00016438,2]
[366066564,1750045848286,-495.81400295,0.00016438,2]
[366066565,1750045848296,-490.0,0.00016438,2]
[366066566,1750045848306,-26377.74,0.00016438,2]
[366066567,1750045848316,-837.86,0.00016438,2]
[366066568,1750045848327,-490.0,0.00016438,2]
[366066569,1750045848337,-490.0,0.00016438,2]
[366066570,1750045848346,-1866.44,0.00016438,2]
[366066571,1750045848356,-490.0,0.00016438,2]
[366066572,1750045848367,-490.0,0.00016438,2]
[366066573,1750045848377,-1064.04,0.00016438,2]
[366066574,1750045848387,-490.0,0.00016438,2]
[366066575,1750045848397,-5085.5,0.00016438,2]
[366066576,1750045848407,-1181.05,0.00016438,2]
[366066577,1750045848417,-1451.8,0.00016438,2]
[366066578,1750045848428,-483.9198643,0.00016438,2]
[366066579,1750045848438,-486.53328804,0.00016438,2]
[366066580,1750045848449,-1061.78,0.00016438,2]
[366066581,1750045848460,-495.37282596,0.00016438,2]
[366066582,1750045848470,-151.0,0.00016438,2]
[366066583,1750045848479,-492.94784117,0.00016438,2]
[366066584,1750045848489,-1413.65,0.00016438,2]
[366066585,1750045848500,-151.0,0.00016438,2]
[366066586,1750045848510,-151.0,0.00016438,2]
[366066587,1750045848520,-1530.87,0.00016438,2]
[366066588,1750045848530,-490.0,0.00016438,2]
[366066589,1750045848541,-490.0,0.00016438,2]
[366066590,1750045848551,-500.06585854,0.00016438,2]
[366066591,1750045848562,-496.31284511,0.00016438,2]
[366066592,1750045848572,-559.05,0.00016438,2]
[366066593,1750045848582,-3303.97,0.00016438,2]
[366066594,1750045848592,-646.39,0.00016438,2]
[366066595,1750045848602,-490.0,0.00016438,2]
[366066596,1750045848612,-490.0,0.00016438,2]
[366066597,1750045848623,-19828.6,0.00016438,2]
[366066598,1750045848632,-1773.27,0.00016438,2]
[366066599,1750045848642,-490.0,0.00016438,2]
[366066600,1750045848652,-1562.83,0.00016438,2]
[366066601,1750045848663,-494.00947969,0.00016438,2]
[366066602,1750045848673,-493.82803285,0.00016438,2]
[366066603,1750045848684,-602.26,0.00016438,2]
[366066604,1750045848694,-4830.77,0.00016438,2]
[366066605,1750045848704,-602.26,0.00016438,2]
[366066606,1750045848714,-602.26,0.00016438,2]
[366066607,1750045848723,-1946.05,0.00016438,2]
[366066608,1750045848733,-602.26,0.00016438,2]
[366066609,1750045848743,-602.26,0.00016438,2]
[366066610,1750045848753,-490.0,0.00016438,2]
[366066611,1750045848763,-342.554427,0.00016438,2]
[366066612,1750045848772,-1390.25,0.00016438,2]
[366066613,1750045848782,-342.554427,0.00016438,2]
[366066614,1750045848792,-1483.9,0.00016438,2]
[366066615,1750045848806,-342.554427,0.00016438,2]
[366066616,1750045848816,-2056.67,0.00016438,2]
[366066617,1750045848827,-490.0,0.00016438,2]
[366066618,1750045848837,-440.0,0.00016438,2]
[366066619,1750045848847,-490.67812381,0.00016438,2]
[366066620,1750045848857,-1063.85,0.00016438,2]
[366066621,1750045848867,-1615.21,0.00016438,2]
[366066622,1750045848877,-151.208562,0.00016438,2]
[366066623,1750045848887,-490.0,0.00016438,2]
[366066624,1750045848896,-2448.75,0.00016438,2]
[366066625,1750045848907,-495.85922865,0.00016438,2]
[366066626,1750045848916,-544.31,0.00016438,2]
[366066627,1750045848926,-1536.28,0.00016438,2]
[366066628,1750045848937,-342.554427,0.00016438,2]
[366066629,1750045848951,-622.25,0.00016438,2]
[366066630,1750045848962,-4029.87,0.00016438,2]
[366066631,1750045848972,-342.554427,0.00016438,2]
[366066632,1750045848982,-1781.93,0.00016438,2]
[366066633,1750045848993,-638.37,0.00016438,2]
[366066634,1750045849002,-342.554427,0.00016438,2]
[366066635,1750045849012,-490.0,0.00016438,2]
[366066636,1750045849023,-1444.72,0.00016438,2]
[366066637,1750045849032,-490.0,0.00016438,2]
[366066638,1750045849042,-490.0,0.00016438,2]
[366066639,1750045849052,-494.54946756,0.00016438,2]
[366066640,1750045849061,-490.0,0.00016438,2]
[366066641,1750045849071,-1768.55,0.00016438,2]
[366066642,1750045849081,-1607.2,0.00016438,2]
[366066643,1750045849091,-1232.24,0.00016438,2]
[366066644,1750045849101,-4375.9,0.00016438,2]
[366066645,1750045849111,-490.0,0.00016438,2]
[366066646,1750045849121,-581.74,0.00016438,2]
[366066647,1750045849130,-490.0,0.00016438,2]
[366066648,1750045849140,-493.89243088,0.00016438,2]
[366066649,1750045849150,-477.68011863,0.00016438,2]
[366066650,1750045849159,-500.0,0.00016438,2]
[366066651,1750045849169,-629.92,0.00016438,2]
[366066652,1750045849180,-3076.9,0.00016438,2]
[366066653,1750045849189,-490.0,0.00016438,2]
[366066654,1750045849199,-222.42428426,0.00016438,2]
[366066655,1750045849209,-500.0,0.00016438,2]
[366066656,1750045849219,-500.0,0.00016438,2]
[366066657,1750045849229,-496.37695765,0.00016438,2]
[366066658,1750045849238,-500.0,0.00016438,2]
[366066659,1750045849249,-1326.57,0.00016438,2]
[366066660,1750045849259,-500.0,0.00016438,2]
[366066661,1750045849269,-1480.78,0.00016438,2]
[366066662,1750045849279,-702.04,0.00016438,2]
[366066663,1750045849288,-491.53352089,0.00016438,2]
[366066664,1750045849298,-151.0,0.00016438,2]
[366066665,1750045849308,-151.0,0.00016438,2]
[366066666,1750045849318,-1478.39,0.00016438,2]
[366066667,1750045849327,-151.0,0.00016438,2]
[366066668,1750045849336,-3936.07,0.00016438,2]
[366066669,1750045849345,-1166.33,0.00016438,2]
[366066670,1750045849355,-2403.24,0.00016438,2]
[366066671,1750045849364,-490.0,0.00016438,2]
[366066672,1750045849374,-7802.55,0.00016438,2]
[366066673,1750045849383,-1744.4,0.00016438,2]
[366066674,1750045849393,-490.0,0.00016438,2]
[366066675,1750045849403,-494.70021302,0.00016438,2]
[366066676,1750045849412,-490.0,0.00016438,2]
[366066677,1750045849422,-490.0,0.00016438,2]
[366066678,1750045849432,-1901.46,0.00016438,2]
[366066679,1750045849442,-445.16130508,0.00016438,2]
[366066680,1750045849451,-490.0,0.00016438,2]
[366066681,1750045849461,-490.0,0.00016438,2]
[366066682,1750045849471,-490.0,0.00016438,2]
[366066683,1750045849480,-490.0,0.00016438,2]
[366066684,1750045849490,-161.95542812,0.00016438,2]
[366066685,1750045849499,-490.0,0.00016438,2]
[366066686,1750045849509,-305.15,0.00016438,2]
[366066687,1750045849518,-2618.2481025,0.00016442,2]
[366066688,1750045849528,-267.194498,0.00016454,2]
[366066689,1750045849537,-267.194498,0.00016454,2]
[366066690,1750045849548,-151.0,0.00016454,2]
[366066691,1750045849558,-151.0,0.00016454,2]
[366066692,1750045849568,-2054.319114,0.00016454,2]
[366066693,1750045849578,-2054.319114,0.00016454,2]
[366066694,1750045849588,-151.0,0.00016454,2]
[366066695,1750045849598,-307.99385,0.00016454,2]
[366066696,1750045849607,-307.99385,0.00016454,2]
[366066697,1750045849618,-182.556766,0.00016454,2]
[366066698,1750045849627,-182.556766,0.00016454,2]
[366066699,1750045849638,-151.0,0.00016454,2]
[366066700,1750045849647,-500.0,0.00016458,2]
[366066701,1750045849658,-200.0,0.00016458,2]
[366066702,1750045849667,-153.63081851,0.00016464,2]
[366066703,1750045849676,-291.91449981,0.00016471,2]
[366066704,1750045849685,-151.0,0.0001648,2]
[366066705,1750045849695,-1449.727524,0.0001648,2]
[366066706,1750045849705,-1449.727524,0.0001648,2]
[366066707,1750045849714,-151.0,0.0001648,2]
[366066708,1750045849723,-151.0,0.0001648,2]
[366066709,1750045849734,-1458.71121,0.0001648,2]
[366066710,1750045849743,-1458.71121,0.0001648,2]
[366066711,1750045849753,-151.0,0.0001648,2]
[366066712,1750045849763,-788.0,0.0001648,2]
[366066713,1750045849772,-2715.12328229,0.00016497,2]
[366066714,1750045849782,-248.68895007,0.00016499,2]
[366066715,1750045849791,-300.0,0.000165,6]
[366066716,1750045849801,-788.0,0.00016502,2]
[366066717,1750045849810,-291.91449981,0.0001651,2]
[366066718,1750045849820,-151.0,0.00016518,2]
[366066719,1750045849829,-151.0,0.00016518,2]
[366066720,1750045849839,-151.0,0.00016518,2]
[366066721,1750045849848,-224.317564,0.00016518,2]
[366066722,1750045849857,-300.0,0.00016518,2]
[366066723,1750045849867,-788.0,0.00016519,2]
[366066724,1750045849877,-788.0,0.0001652,2]
[366066725,1750045849886,-1560.692,0.00016521,2]
[366066726,1750045849896,-151.98104517,0.00016525,2]
[366066727,1750045849905,-788.0,0.00016549,2]
[366066728,1750045849915,-291.91449981,0.0001655,2]
[366066729,1750045849925,-2815.58284374,0.00016552,2]
[366066730,1750045849934,-534.17,0.00016563,2]
[366066731,1750045849947,-534.17,0.00016563,2]
[366066732,1750045849956,-534.17,0.00016563,2]
[366066733,1750045849965,-534.17,0.00016563,2]
[366066734,1750045849975,-534.17,0.00016563,2]
[366066735,1750045849984,-534.17,0.00016563,2]
[366066736,1750045849996,-602.26,0.00016563,2]
[366066737,1750045850006,-602.26,0.00016563,2]
[366066738,1750045850015,-602.26,0.00016563,2]
[366066739,1750045850027,-602.26,0.00016563,2]
[366066740,1750045850038,-602.26,0.00016563,2]
[366066741,1750045850048,-602.26,0.00016563,2]
[366066742,1750045850057,-500.0,0.00016563,2]
[366066743,1750045850066,-509.45012815,0.00016563,2]
[366066744,1750045850075,-152.409593,0.00016564,2]
[366066745,1750045850085,-151.0,0.00016564,2]
[366066746,1750045850094,-151.0,0.00016564,2]
[366066747,1750045850103,-151.0,0.00016564,2]
[366066748,1750045850113,-151.307466,0.00016564,2]
[366066749,1750045850123,-151.0,0.00016564,2]
[366066750,1750045850132,-151.0,0.00016564,2]
[366066751,1750045850142,-1531.645485,0.00016564,2]
[366066752,1750045850151,-1531.645485,0.00016564,2]
[366066753,1750045850291,-151.0,0.00016564,2]
[366066754,1750045850300,-151.0,0.00016564,2]
[366066755,1750045850309,-151.0,0.00016564,2]
[366066756,1750045850318,-237.03693,0.00016564,2]
[366066757,1750045850328,-404.16091,0.00016564,2]
[366066758,1750045850337,-237.03693,0.00016564,2]
[366066759,1750045850346,-404.16091,0.00016564,2]
[366066760,1750045850355,-417.702505,0.00016564,2]
[366066761,1750045850364,-417.702505,0.00016564,2]
[366066762,1750045850373,-151.0,0.00016564,2]
[366066763,1750045850382,-151.0,0.00016564,2]
[366066764,1750045850391,-164.669711,0.00016564,2]
[366066765,1750045850401,-164.669711,0.00016564,2]
[366066766,1750045850411,-151.0,0.00016564,2]
[366066767,1750045850420,-151.0,0.00016564,2]
[366066768,1750045850429,-151.0,0.00016564,2]
[366066769,1750045850438,-151.0,0.00016564,2]
[366066770,1750045850447,-263.27639,0.00016564,2]
[366066771,1750045850456,-263.27639,0.00016564,2]
[366066772,1750045850466,-151.0,0.00016564,2]
[366066773,1750045850475,-151.0,0.00016564,2]
[366066774,1750045850486,-402.498021,0.00016564,2]
[366066775,1750045850495,-402.498021,0.00016564,2]
[366066776,1750045850505,-260.400621,0.00016564,2]
[366066777,1750045850514,-260.400621,0.00016564,2]
[366066778,1750045850524,-287043.4999999,0.00016564,2]
[366066779,1750045850534,-151.0,0.00016564,2]
[366066780,1750045850543,-151.0,0.00016564,2]
[366066781,1750045850552,-1449.727524,0.00016564,2]
[366066782,1750045850561,-1449.727524,0.00016564,2]
[366066783,1750045850570,-1449.727524,0.00016564,2]
[366066784,1750045850580,-1449.727524,0.00016564,2]
[366066785,1750045850589,-151.0,0.00016564,2]
[366066786,1750045850599,-151.0,0.00016564,2]
[366066787,1750045850608,-144107.8878154,0.00016564,2]
[366066788,1750045850617,-151.0,0.00016564,2]
[366066789,1750045850627,-151.0,0.00016564,2]
[366066790,1750045850636,-220.569412,0.00016564,2]
[366066791,1750045850646,-177.381427,0.00016564,2]
[366066792,1750045850655,-177.381427,0.00016564,2]
[366066793,1750045850664,-151.0,0.00016564,2]
[366066794,1750045850673,-151.0,0.00016564,2]
[366066795,1750045850683,-220.569412,0.00016564,2]
[366066796,1750045850693,-177.381427,0.00016564,2]
[366066797,1750045850702,-177.381427,0.00016564,2]
[366066798,1750045850711,-151.0,0.00016564,2]
[366066799,1750045850720,-1030.279953,0.00016564,2]
[366066800,1750045850730,-1030.279953,0.00016564,2]
[366066801,1750045850739,-9065.9042744,0.00016564,2]
[366066802,1750045850748,-1458.71121,0.00016564,2]
[366066803,1750045850757,-1458.71121,0.00016564,2]
[366066804,1750045850768,-1458.71121,0.00016564,2]
[366066805,1750045850777,-1458.71121,0.00016564,2]
[366066806,1750045850787,-161.986491,0.00016564,2]
[366066807,1750045850796,-151.0,0.00016564,2]
[366066808,1750045850805,-298.086477,0.00016564,2]
[366066809,1750045850814,-342.554427,0.00016564,2]
[366066810,1750045850823,-342.554427,0.00016564,2]
[366066811,1750045850832,-342.554427,0.00016564,2]
[366066812,1750045850841,-342.554427,0.00016564,2]
[366066813,1750045850849,-151.0,0.00016564,2]
[366066814,1750045850859,-151.0,0.00016564,2]
[366066815,1750045850868,-788.0,0.00016567,2]
[366066816,1750045850877,-500.0,0.00016573,2]
[366066817,1750045850886,-500.0,0.00016573,2]
[366066818,1750045850895,-500.0,0.00016573,2]
[366066819,1750045850904,-500.0,0.00016573,2]
[366066820,1750045850913,-500.0,0.00016573,2]
[366066821,1750045850922,-500.0,0.00016573,2]
[366066822,1750045850931,-501.51225792,0.00016573,2]
[366066823,1750045850940,-521.93008047,0.00016573,2]
[366066824,1750045850953,-500.0,0.00016573,2]
[366066825,1750045850962,-200.0,0.00016573,2]
[366066826,1750045850972,-200.0,0.00016573,2]
[366066827,1750045850982,-150.0,0.00016575,2]
[366066828,1750045850992,-150.0,0.00016575,2]
[366066829,1750045851001,-150.0,0.00016575,2]
[366066830,1750045851010,-150.0,0.00016575,2]
[366066831,1750045851020,-150.0,0.00016575,2]
[366066832,1750045851029,-150.0,0.00016575,2]
[366066833,1750045851038,-150.0,0.00016575,2]
[366066834,1750045851047,-150.0,0.00016575,2]
[366066835,1750045851056,-150.0,0.00016575,2]
[366066836,1750045851066,-150.0,0.00016575,2]
[366066837,1750045851075,-150.0,0.00016575,2]
[366066838,1750045851084,-150.0,0.00016575,2]
[366066839,1750045851093,-150.0,0.00016575,2]
[366066840,1750045851102,-150.0,0.00016575,2]
[366066841,1750045851111,-150.0,0.00016575,2]
[366066842,1750045851120,-150.0,0.00016575,2]
[366066843,1750045851129,-150.0,0.00016575,2]
[366066844,1750045851139,-150.0,0.00016575,2]
[366066845,1750045851148,-150.0,0.00016575,2]
[366066846,1750045851157,-500.0,0.00016575,2]
[366066847,1750045851166,-257.94950102,0.00016575,2]
[366066848,1750045851175,-150.0,0.00016575,2]
[366066849,1750045851185,-151.32938418,0.00016575,2]
[366066850,1750045851194,-534.17,0.00016579,2]
[366066851,1750045851203,-602.26,0.00016579,2]
[366066852,1750045851212,-217.54809124,0.0001658,2]
[366066853,1750045851222,-151.90546,0.0001658,2]
[366066854,1750045851231,-151.0,0.0001658,2]
[366066855,1750045851240,-151.0,0.0001658,2]
[366066856,1750045851249,-151.0,0.0001658,2]
[366066857,1750045851258,-151.0,0.0001658,2]
[366066858,1750045851268,-151.0,0.0001658,2]
[366066859,1750045851277,-151.0,0.0001658,2]
[366066860,1750045851286,-151.0,0.0001658,2]
[366066861,1750045851295,-151.0,0.0001658,2]
[366066862,1750045851304,-151.0,0.0001658,2]
[366066863,1750045851313,-189.630399,0.0001658,2]
[366066864,1750045851322,-189.630399,0.0001658,2]
[366066865,1750045851331,-500.0,0.0001658,2]
[366066866,1750045851340,-500.0,0.0001658,2]
[366066867,1750045851349,-500.0,0.0001658,2]
[366066868,1750045851358,-500.0,0.0001658,2]
[366066869,1750045851367,-500.0,0.0001658,2]
[366066870,1750045851377,-500.0,0.0001658,2]
[366066871,1750045851386,-500.0,0.0001658,2]
[366066872,1750045851395,-500.0,0.0001658,2]
[366066873,1750045851404,-500.0,0.0001658,2]
[366066874,1750045851414,-500.0,0.0001658,2]
[366066875,1750045851423,-500.0,0.0001658,2]
[366066876,1750045851432,-500.0,0.0001658,2]
[366066877,1750045851441,-272.16386292,0.0001658,2]
[366066878,1750045851451,-500.0,0.0001658,2]
[366066879,1750045851460,-500.0,0.0001658,2]
[366066880,1750045851469,-500.0,0.0001658,2]
[366066881,1750045851479,-151.0,0.00016581,2]
[366066882,1750045851488,-151.0,0.00016581,2]
[366066883,1750045851498,-242.162993,0.00016581,2]
[366066884,1750045851508,-242.162993,0.00016581,2]
[366066885,1750045851517,-184.311177,0.00016581,2]
[366066886,1750045851526,-184.311177,0.00016581,2]
[366066887,1750045851536,-151.0,0.00016581,2]
[366066888,1750045851546,-216.587078,0.00016581,2]
[366066889,1750045851555,-151.0,0.00016581,2]
[366066890,1750045851564,-151.0,0.00016581,2]
[366066891,1750045851574,-230.747168,0.00016581,2]
[366066892,1750045851583,-151.0,0.00016581,2]
[366066893,1750045851593,-151.0,0.00016581,2]
[366066894,1750045851603,-151.446172,0.00016581,2]
[366066895,1750045851612,-481.215959,0.00016581,2]
[366066896,1750045851621,-481.215959,0.00016581,2]
[366066897,1750045851631,-151.0,0.00016581,2]
[366066898,1750045851640,-151.0,0.00016581,2]
[366066899,1750045851649,-151.0,0.00016581,2]
[366066900,1750045851659,-151.0,0.00016581,2]
[366066901,1750045851668,-151.505387,0.00016581,2]
[366066902,1750045851677,-151.0,0.00016581,2]
[366066903,1750045851685,-151.0,0.00016581,2]
[366066904,1750045851694,-151.0,0.00016581,2]
[366066905,1750045851703,-205.806729,0.00016581,2]
[366066906,1750045851712,-232.912338,0.00016581,2]
[366066907,1750045851722,-210.412489,0.00016581,2]
[366066908,1750045851731,-151.0,0.00016581,2]
[366066909,1750045851740,-210.412489,0.00016581,2]
[366066910,1750045851749,-151.0,0.00016581,2]
[366066911,1750045851759,-151.0,0.00016581,2]
[366066912,1750045851768,-337.984874,0.00016581,2]
[366066913,1750045851777,-337.984874,0.00016581,2]
[366066914,1750045851786,-151.0,0.00016581,2]
[366066915,1750045851795,-151.0,0.00016581,2]
[366066916,1750045851804,-337.984874,0.00016581,2]
[366066917,1750045851812,-337.984874,0.00016581,2]
[366066918,1750045851821,-151.0,0.00016581,2]
[366066919,1750045851830,-151.0,0.00016581,2]
[366066920,1750045851839,-151.0,0.00016581,2]
[366066921,1750045851849,-151.0,0.00016581,2]
[366066922,1750045851858,-267.194498,0.00016581,2]
[366066923,1750045851868,-267.194498,0.00016581,2]
[366066924,1750045851877,-267.194498,0.00016581,2]
[366066925,1750045851889,-267.194498,0.00016581,2]
[366066926,1750045851901,-151.0,0.00016581,2]
[366066927,1750045851911,-152.65699,0.00016581,2]
[366066928,1750045851922,-152.65699,0.00016581,2]
[366066929,1750045851932,-151.0,0.00016581,2]
[366066930,1750045851947,-151.0,0.00016581,2]
[366066931,1750045851958,-251.809895,0.00016581,2]
[366066932,1750045851968,-312.904039,0.00016581,2]
[366066933,1750045851979,-312.904039,0.00016581,2]
[366066934,1750045851988,-2054.319114,0.00016581,2]
[366066935,1750045851997,-2054.319114,0.00016581,2]
[366066936,1750045852007,-2054.319114,0.00016581,2]
[366066937,1750045852017,-2054.319114,0.00016581,2]
[366066938,1750045852027,-151.0,0.00016581,2]
[366066939,1750045852037,-151.0,0.00016581,2]
[366066940,1750045852047,-320.968554,0.00016581,2]
[366066941,1750045852058,-320.968554,0.00016581,2]
[366066942,1750045852068,-151.0,0.00016581,2]
[366066943,1750045852078,-307.99385,0.00016581,2]
[366066944,1750045852086,-307.99385,0.00016581,2]
[366066945,1750045852096,-307.99385,0.00016581,2]
[366066946,1750045852105,-307.99385,0.00016581,2]
[366066947,1750045852115,-151.0,0.00016581,2]
[366066948,1750045852125,-151.0,0.00016581,2]
[366066949,1750045852135,-151.0,0.00016581,2]
[366066950,1750045852144,-151.0,0.00016581,2]
[366066951,1750045852153,-151.0,0.00016581,2]
[366066952,1750045852161,-151.0,0.00016581,2]
[366066953,1750045852172,-182.556766,0.00016581,2]
[366066954,1750045852181,-182.556766,0.00016581,2]
[366066955,1750045852191,-182.556766,0.00016581,2]
[366066956,1750045852199,-182.556766,0.00016581,2]
[366066957,1750045852209,-151.0,0.00016581,2]
[366066958,1750045852218,-151.0,0.00016581,2]
[366066959,1750045852228,-151.0,0.00016581,2]
[366066960,1750045852237,-151.0,0.00016581,2]
[366066961,1750045852247,-1531.645485,0.00016581,2]
[366066962,1750045852256,-1531.645485,0.00016581,2]
[366066963,1750045852265,-189.630399,0.00016581,2]
[366066964,1750045852274,-189.630399,0.00016581,2]
[366066965,1750045852283,-151.0,0.00016581,2]
[366066966,1750045852292,-151.0,0.00016581,2]
[366066967,1750045852301,-151.0,0.00016581,2]
[366066968,1750045852310,-151.0,0.00016581,2]
[366066969,1750045852320,-151.0,0.00016581,2]
[366066970,1750045852330,-237.03693,0.00016581,2]
[366066971,1750045852339,-404.16091,0.00016581,2]
[366066972,1750045852349,-237.03693,0.00016581,2]
[366066973,1750045852359,-404.16091,0.00016581,2]
[366066974,1750045852370,-151.0,0.00016581,2]
[366066975,1750045852379,-151.0,0.00016581,2]
[366066976,1750045852389,-417.702505,0.00016581,2]
[366066977,1750045852398,-417.702505,0.00016581,2]
[366066978,1750045852407,-151.0,0.00016581,2]
[366066979,1750045852416,-151.0,0.00016581,2]
[366066980,1750045852427,-151.0,0.00016581,2]
[366066981,1750045852436,-151.0,0.00016581,2]
[366066982,1750045852446,-151.0,0.00016581,2]
[366066983,1750045852456,-151.0,0.00016581,2]
[366066984,1750045852466,-151.0,0.00016581,2]
[366066985,1750045852475,-151.0,0.00016581,2]